lending/lending_fUSD_20250131
["ID","MTS","AMOUNT","RATE_DAILY","PERIOD"]
[351094855,1738331458115,-2383.87,0.00016849,2]
[351094856,1738331458124,-1714.39,0.00016849,2]
[351094857,1738331458134,-500.0,0.00016849,2]
[351094858,1738331458143,-500.0,0.00016849,2]
[351094859,1738331458152,-643.52,0.00016849,2]
[351094860,1738331458162,-653.94,0.00016849,2]
[351094861,1738331458171,-575.79,0.00016849,2]
[351094862,1738331458181,-1408.5,0.00016849,2]
[351094863,1738331458191,-579.23,0.00016849,2]
[351094864,1738331458200,-500.0,0.00016849,2]
[351094865,1738331458211,-500.0,0.00016849,2]
[351094866,1738331458221,-857.15,0.00016849,2]
[351094867,1738331458230,-1443.72,0.00016849,2]
[351094868,1738331458239,-500.0,0.00016849,2]
[351094869,1738331458250,-2347.18,0.00016849,2]
[351094870,1738331458259,-3749.58,0.00016849,2]
[351094871,1738331458269,-1881.99,0.00016849,2]
[351094872,1738331458279,-500.0,0.00016849,2]
[351094873,1738331458289,-500.0,0.00016849,2]
[351094874,1738331458298,-2537.4,0.00016849,2]
[351094875,1738331458308,-529.84,0.00016849,2]
[351094876,1738331458316,-500.0,0.00016849,2]
[351094877,1738331458327,-1192.43,0.00016849,2]
[351094878,1738331458336,-511.01,0.00016849,2]
[351094879,1738331458346,-520.15,0.00016849,2]
[351094880,1738331458355,-500.0,0.00016849,2]
[351094881,1738331458365,-686.71,0.00016849,2]
[351094882,1738331458374,-500.0,0.00016849,2]
[351094883,1738331458383,-500.0,0.00016849,2]
[351094884,1738331458393,-500.0,0.00016849,2]
[351094885,1738331458402,-760.48,0.00016849,2]
[351094886,1738331458411,-1242.43,0.00016849,2]
[351094887,1738331458420,-502.11102467,0.00016849,2]
[351094888,1738331458429,-1563.35,0.00016849,2]
[351094889,1738331458439,-660.74,0.00016849,2]
[351094890,1738331458449,-1655.73,0.00016849,2]
[351094891,1738331458458,-1736.45,0.00016849,2]
[351094892,1738331458467,-500.0,0.00016849,2]
[351094893,1738331458477,-1241.45,0.00016849,2]
[351094894,1738331458486,-4452.16,0.00016849,2]
[351094895,1738331458496,-3401.87,0.00016849,2]
[351094896,1738331458505,-751.24,0.00016849,2]
[351094897,1738331458515,-500.0,0.00016849,2]
[351094898,1738331458524,-3290.56,0.00016849,2]
[351094899,1738331458533,-500.0,0.00016849,2]
[351094900,1738331458543,-1295.48,0.00016849,2]
[351094901,1738331458553,-1891.53,0.00016849,2]
[351094902,1738331458562,-3805.98,0.00016849,2]
[351094903,1738331458572,-500.0,0.00016849,2]
[351094904,1738331458581,-762.01,0.00016849,2]
[351094905,1738331458590,-965.0,0.00016849,2]
[351094906,1738331458599,-1482.09,0.00016849,2]
[351094907,1738331458608,-2173.05,0.00016849,2]
[351094908,1738331458618,-500.0,0.00016849,2]
[351094909,1738331458628,-500.0,0.00016849,2]
[351094910,1738331458637,-500.0,0.00016849,2]
[351094911,1738331458646,-500.0,0.00016849,2]
[351094912,1738331458656,-2117.77,0.00016849,2]
[351094913,1738331458665,-822.18,0.00016849,2]
[351094914,1738331458674,-2597.78,0.00016849,2]
[351094915,1738331458684,-509.73232581,0.00016849,2]
[351094916,1738331458693,-3322.12,0.00016849,2]
[351094917,1738331458703,-672.46,0.00016849,2]
[351094918,1738331458712,-500.0,0.00016849,2]
[351094919,1738331458726,-801.38,0.00016849,2]
[351094920,1738331458735,-647.32,0.00016849,2]
[351094921,1738331458745,-1456.0,0.00016849,2]
[351094922,1738331458755,-500.0,0.00016849,2]
[351094923,1738331458765,-1603.32,0.00016849,2]
[351094924,1738331458775,-1251.4,0.00016849,2]
[351094925,1738331458785,-1067.36,0.00016849,2]
[351094926,1738331458795,-680.04,0.00016849,2]
[351094927,1738331458805,-500.0,0.00016849,2]
[351094928,1738331458814,-925.79,0.00016849,2]
[351094929,1738331458824,-500.0,0.00016849,2]
[351094930,1738331458834,-2038.93,0.00016849,2]
[351094931,1738331458843,-2395.79,0.00016849,2]
[351094932,1738331458853,-500.0,0.00016849,2]
[351094933,1738331458862,-500.0,0.00016849,2]
[351094934,1738331458872,-500.0,0.00016849,2]
[351094935,1738331458881,-500.0,0.00016849,2]
[351094936,1738331458890,-790.46,0.00016849,2]
[351094937,1738331458899,-3425.97,0.00016849,2]
[351094938,1738331458909,-500.0,0.00016849,2]
[351094939,1738331458924,-1665.2,0.00016849,2]
[351094940,1738331458935,-500.0,0.00016849,2]
[351094941,1738331458945,-895.49,0.00016849,2]
[351094942,1738331458955,-816.67,0.00016849,2]
[351094943,1738331458966,-529.88,0.00016849,2]
[351094944,1738331458976,-1548.78,0.00016849,2]
[351094945,1738331458986,-1163.85,0.00016849,2]
[351094946,1738331458995,-500.0,0.00016849,2]
[351094947,1738331459006,-1306.7,0.00016849,2]
[351094948,1738331459016,-500.0,0.00016849,2]
[351094949,1738331459025,-4114.06,0.00016849,2]
[351094950,1738331459035,-500.0,0.00016849,2]
[351094951,1738331459044,-983.48,0.00016849,2]
[351094952,1738331459054,-500.0,0.00016849,2]
[351094953,1738331459064,-1271.81,0.00016849,2]
[351094954,1738331459075,-500.0,0.00016849,2]
[351094955,1738331459085,-638.61,0.00016849,2]
[351094956,1738331459095,-1339.53,0.00016849,2]
[351094957,1738331459104,-1223.81,0.00016849,2]
[351094958,1738331459114,-500.0,0.00016849,2]
[351094959,1738331459124,-201.26424826,0.00016885,2]
[351094960,1738331459133,-500.0,0.00016885,2]
[351094961,1738331459143,-170.10544773,0.00016885,2]
[351094962,1738331459153,-261.14685664,0.00016885,2]
[351094963,1738331459162,-500.51639644,0.00016885,2]
[351094964,1738331459173,-643.84044485,0.00016895,2]
[351094965,1738331459183,-1000.0,0.00016901,2]
[351094966,1738331459193,-758.3,0.00016912,2]
[351094967,1738331459203,-500.0,0.00016985,2]
[351094968,1738331459212,-500.0,0.00016985,2]
[351094969,1738331459222,-500.0,0.00016985,2]
[351094970,1738331459232,-500.0,0.00016985,2]
[351094971,1738331459242,-500.0,0.00016985,2]
[351094972,1738331459251,-500.0,0.00016985,2]
[351094973,1738331459261,-500.0,0.00016985,2]
[351094974,1738331459271,-500.0,0.00016985,2]
[351094975,1738331459281,-500.0,0.00016985,2]
[351094976,1738331459290,-500.0,0.00016985,2]
[351094977,1738331459299,-500.0,0.00016985,2]
[351094978,1738331459311,-500.0,0.00016985,2]
[351094979,1738331459321,-500.0,0.00016985,2]
[351094980,1738331459331,-500.0,0.00016985,2]
[351094981,1738331459340,-500.0,0.00016985,2]
[351094982,1738331459350,-500.0,0.00016985,2]
[351094983,1738331459360,-159.99587354,0.00016985,2]
[351094984,1738331459369,-349.34069022,0.00016985,2]
[351094985,1738331459379,-500.0,0.00016985,2]
[351094986,1738331459388,-307.66543915,0.00016985,2]
[351094987,1738331459397,-500.0,0.00016985,2]
[351094988,1738331459407,-500.0,0.00016985,2]
[351094989,1738331459416,-617.282471,0.00016986,2]
[351094990,1738331459426,-529.48,0.00016986,2]
[351094991,1738331459435,-500.0,0.00016986,2]
[351094992,1738331459446,-901.463894,0.00016986,2]
[351094993,1738331459456,-500.0,0.00016986,2]
[351094994,1738331459465,-500.0,0.00016986,2]
[351094995,1738331459475,-500.0,0.00016986,2]
[351094996,1738331459485,-500.0,0.00016986,2]
[351094997,1738331459494,-331.00390144,0.00016986,2]
[351094998,1738331459503,-500.0,0.00016986,2]
[351094999,1738331459513,-511.23,0.00016986,2]
[351095000,1738331459522,-641.69267035,0.00016986,2]
[351095001,1738331459532,-500.0,0.00016986,2]
[351095002,1738331459541,-500.0,0.00016986,2]
[351095003,1738331459550,-500.0,0.00016986,2]
[351095004,1738331459561,-500.0,0.00016986,2]
[351095005,1738331459570,-500.0,0.00016986,2]
[351095006,1738331459579,-373.63095771,0.00016986,2]
[351095007,1738331459588,-500.0,0.00016986,2]
[351095008,1738331459598,-500.0,0.00016986,2]
[351095009,1738331459607,-500.0,0.00016986,2]
[351095010,1738331459617,-184.79,0.00016986,2]
[351095011,1738331459627,-1881.292,0.00016986,2]
[351095012,1738331459636,-500.0,0.00016986,2]
[351095013,1738331459645,-500.0,0.00016986,2]
[351095014,1738331459654,-500.0,0.00016986,2]
[351095015,1738331459664,-500.0,0.00016986,2]
[351095016,1738331459675,-500.0,0.00016986,2]
[351095017,1738331459686,-500.0,0.00016986,2]
[351095018,1738331459695,-500.0,0.00016986,2]
[351095019,1738331459704,-500.0,0.00016986,2]
[351095020,1738331459713,-500.0,0.00016986,2]
[351095021,1738331459723,-925.72,0.00016986,2]
[351095022,1738331459732,-500.0,0.00016986,2]
[351095023,1738331459741,-504.28,0.00016986,2]
[351095024,1738331459751,-500.0,0.00016986,2]
[351095025,1738331459760,-1000.75,0.00016986,2]
[351095026,1738331459769,-500.0,0.00016986,2]
[351095027,1738331459779,-833.39,0.00016986,2]
[351095028,1738331459788,-500.0,0.00016986,2]
[351095029,1738331459797,-847.51,0.00016986,2]
[351095030,1738331459807,-642.66,0.00016986,2]
[351095031,1738331459816,-620.46,0.00016986,2]
[351095032,1738331459825,-500.0,0.00016986,2]
[351095033,1738331459835,-500.0,0.00016986,2]
[351095034,1738331459844,-710.95,0.00016986,2]
[351095035,1738331459854,-751.82,0.00016986,2]
[351095036,1738331459863,-500.0,0.00016986,2]
[351095037,1738331459873,-500.0,0.00016986,2]
[351095038,1738331459884,-707.01,0.00016986,2]
[351095039,1738331459893,-728.49,0.00016986,2]
[351095040,1738331459902,-500.0,0.00016986,2]
[351095041,1738331459912,-667.53,0.00016986,2]
[351095042,1738331459925,-688.95,0.00016986,2]
[351095043,1738331459935,-500.0,0.00016986,2]
[351095044,1738331459944,-500.0,0.00016986,2]
[351095045,1738331459953,-500.0,0.00016986,2]
[351095046,1738331459963,-500.0,0.00016986,2]
[351095047,1738331459974,-1068.02,0.00016986,2]
[351095048,1738331459983,-500.0,0.00016986,2]
[351095049,1738331459993,-500.0,0.00016986,2]
[351095050,1738331460002,-500.0,0.00016986,2]
[351095051,1738331460013,-500.0,0.00016986,2]
[351095052,1738331460024,-500.0,0.00016986,2]
[351095053,1738331460033,-610.12,0.00016986,2]
[351095054,1738331460044,-500.0,0.00016986,2]
[351095055,1738331460053,-614.16,0.00016986,2]
[351095056,1738331460064,-728.4,0.00016986,2]
[351095057,1738331460074,-500.0,0.00016986,2]
[351095058,1738331460084,-500.0,0.00016986,2]
[351095059,1738331460094,-936.4,0.00016986,2]
[351095060,1738331460104,-619.78,0.00016986,2]
[351095061,1738331460113,-1117.34,0.00016986,2]
[351095062,1738331460122,-554.53,0.00016986,2]
[351095063,1738331460131,-500.0,0.00016986,2]
[351095064,1738331460141,-382.1473328,0.00016986,2]
[351095065,1738331460150,-647.75,0.00016986,2]
[351095066,1738331460160,-500.0,0.00016986,2]
[351095067,1738331460169,-1098.68,0.00016986,2]
[351095068,1738331460178,-625.34,0.00016986,2]
[351095069,1738331460363,-599.59,0.00016986,2]
[351095070,1738331460373,-1242.52,0.00016986,2]
[351095071,1738331460382,-668.66,0.00016986,2]
[351095072,1738331460391,-500.0,0.00016986,2]
[351095073,1738331460400,-879.23,0.00016986,2]
[351095074,1738331460411,-500.0,0.00016986,2]
[351095075,1738331460420,-500.0,0.00016986,2]
[351095076,1738331460429,-500.0,0.00016986,2]
[351095077,1738331460439,-500.0,0.00016986,2]
[351095078,1738331460448,-568.63,0.00016986,2]
[351095079,1738331460458,-513.99,0.00016986,2]
[351095080,1738331460467,-604.15,0.00016986,2]
[351095081,1738331460477,-1266.01,0.00016986,2]
[351095082,1738331460486,-505.52,0.00016986,2]
[351095083,1738331460495,-637.65,0.00016986,2]
[351095084,1738331460505,-500.0,0.00016986,2]
[351095085,1738331460515,-804.7,0.00016986,2]
[351095086,1738331460524,-500.0,0.00016986,2]
[351095087,1738331460533,-500.0,0.00016986,2]
[351095088,1738331460543,-500.0,0.00016986,2]
[351095089,1738331460552,-500.0,0.00016986,2]
[351095090,1738331460562,-714.34,0.00016986,2]
[351095091,1738331460571,-512.03,0.00016986,2]
[351095092,1738331460581,-506.21,0.00016986,2]
[351095093,1738331460590,-698.71,0.00016986,2]
[351095094,1738331460600,-598.32,0.00016986,2]
[351095095,1738331460610,-604.38,0.00016986,2]
[351095096,1738331460619,-500.0,0.00016986,2]
[351095097,1738331460629,-500.0,0.00016986,2]
[351095098,1738331460638,-500.0,0.00016986,2]
[351095099,1738331460647,-563.98,0.00016986,2]
[351095100,1738331460657,-903.25,0.00016986,2]
[351095101,1738331460666,-500.0,0.00016986,2]
[351095102,1738331460676,-1045.44,0.00016986,2]
[351095103,1738331460685,-500.0,0.00016986,2]
[351095104,1738331460694,-575.49276664,0.00016986,2]
[351095105,1738331460704,-576.95,0.00016986,2]
[351095106,1738331460714,-753.7,0.00016986,2]
[351095107,1738331460724,-500.0,0.00016986,2]
[351095108,1738331460734,-500.0,0.00016986,2]
[351095109,1738331460743,-500.0,0.00016986,2]
[351095110,1738331460752,-500.0,0.00016986,2]
[351095111,1738331460762,-574.63,0.00016986,2]
[351095112,1738331460771,-500.0,0.00016986,2]
[351095113,1738331460780,-500.0,0.00016986,2]
[351095114,1738331460790,-500.0,0.00016986,2]
[351095115,1738331460799,-500.0,0.00016986,2]
[351095116,1738331460809,-500.0,0.00016986,2]
[351095117,1738331460818,-500.0,0.00016986,2]
[351095118,1738331460828,-391.28706192,0.00016986,2]
[351095119,1738331460838,-592.48,0.00016986,2]
[351095120,1738331460847,-665.35,0.00016986,2]
[351095121,1738331460856,-500.0,0.00016986,2]
[351095122,1738331460866,-500.0,0.00016986,2]
[351095123,1738331460876,-530.11,0.00016986,2]
[351095124,1738331460885,-647.27,0.00016986,2]
[351095125,1738331460895,-987.2,0.00016986,2]
[351095126,1738331460904,-500.0,0.00016986,2]
[351095127,1738331460913,-905.39,0.00016986,2]
[351095128,1738331460927,-500.0,0.00016986,2]
[351095129,1738331460936,-506.19,0.00016986,2]
[351095130,1738331460946,-532.84,0.00016986,2]
[351095131,1738331460955,-500.0,0.00016986,2]
[351095132,1738331460967,-500.0,0.00016986,2]
[351095133,1738331460977,-551.38,0.00016986,2]
[351095134,1738331460986,-654.39,0.00016986,2]
[351095135,1738331460996,-500.0,0.00016986,2]
[351095136,1738331461007,-548.68,0.00016986,2]
[351095137,1738331461017,-515.59,0.00016986,2]
[351095138,1738331461027,-622.39,0.00016986,2]
[351095139,1738331461036,-500.0,0.00016986,2]
[351095140,1738331461045,-500.0,0.00016986,2]
[351095141,1738331461055,-500.0,0.00016986,2]
[351095142,1738331461064,-500.0,0.00016986,2]
[351095143,1738331461073,-658.0,0.00016986,2]
[351095144,1738331461083,-500.0,0.00016986,2]
[351095145,1738331461092,-642.06,0.00016986,2]
[351095146,1738331461102,-500.0,0.00016986,2]
[351095147,1738331461111,-954.91,0.00016986,2]
[351095148,1738331461120,-500.0,0.00016986,2]
[351095149,1738331461130,-929.67,0.00016986,2]
[351095150,1738331461139,-500.0,0.00016986,2]
[351095151,1738331461148,-809.48,0.00016986,2]
[351095152,1738331461158,-665.8,0.00016986,2]
[351095153,1738331461167,-500.0,0.00016986,2]
[351095154,1738331461176,-503.66,0.00016986,2]
[351095155,1738331461185,-500.0,0.00016986,2]
[351095156,1738331461194,-500.0,0.00016986,2]
[351095157,1738331461204,-500.0,0.00016986,2]
[351095158,1738331461215,-529.48,0.00016986,2]
[351095159,1738331461224,-1177.92,0.00016986,2]
[351095160,1738331461233,-500.0,0.00016986,2]
[351095161,1738331461243,-500.0,0.00016986,2]
[351095162,1738331461252,-160.28459236,0.00016986,2]
[351095163,1738331461261,-585.22,0.00016986,2]
[351095164,1738331461271,-741.83,0.00016986,2]
[351095165,1738331461280,-1143.7,0.00016986,2]
[351095166,1738331461290,-500.0,0.00016986,2]
[351095167,1738331461299,-500.0,0.00016986,2]
[351095168,1738331461308,-758.64840312,0.00016986,2]
[351095169,1738331461332,-364.73159688,0.00016986,2]
[351095170,1738331461341,-333.65298412,0.00016986,2]
[351095171,1738331461353,-166.34701588,0.00016986,2]
[351095172,1738331461363,-500.0,0.00016986,2]
[351095173,1738331461373,-3649.85,0.00016986,2]
[351095174,1738331461382,-366.8744768,0.00016986,2]
[351095175,1738331461786,-560.35,0.00016438,2]
[351095176,1738331461797,-320.8855232,0.00016986,2]
[351095177,1738331461807,-500.0,0.00016986,2]
[351095178,1738331461817,-500.0,0.00016986,2]
[351095179,1738331461827,-1730.6,0.00016986,2]
[351095180,1738331461837,-500.0,0.00016986,2]
[351095181,1738331461846,-500.0,0.00016986,2]
[351095182,1738331461856,-105.8604427,0.00016986,2]
[351095183,1738331461901,-394.1395573,0.00016986,2]
[351095184,1738331461911,-1571.6,0.00016986,2]
[351095185,1738331461922,-531.67003914,0.00016986,2]
[351095186,1738331461934,-1876.2,0.00016986,2]
[351095187,1738331461944,-412.54504594,0.00016986,2]
[351095188,1738331461956,-208.34495406,0.00016986,2]
[351095189,1738331461969,-735.41,0.00016986,2]
[351095190,1738331461979,-1089.82372096,0.00016986,2]
[351095191,1738331461990,-513.78627904,0.00016986,2]
[351095192,1738331462000,-211.90759556,0.00016986,2]
[351095193,1738331462011,-856.29240444,0.00016986,2]
[351095194,1738331462021,-500.0,0.00016986,2]
[351095195,1738331462030,-542.84,0.00016986,2]
[351095196,1738331462040,-500.0,0.00016986,2]
[351095197,1738331462050,-786.27,0.00016986,2]
[351095198,1738331462060,-500.0,0.00016986,2]
[351095199,1738331462070,-500.0,0.00016986,2]
[351095200,1738331462080,-500.0,0.00016986,2]
[351095201,1738331462089,-739.89,0.00016986,2]
[351095202,1738331462098,-1000.0,0.00016986,2]
[351095203,1738331462108,-739.7,0.00016986,2]
[351095204,1738331462118,-536.25,0.00016986,2]
[351095205,1738331462127,-712.4,0.00016986,2]
[351095206,1738331462137,-956.81,0.00016986,2]
[351095207,1738331462146,-500.0,0.00016986,2]
[351095208,1738331462156,-860.82,0.00016986,2]
[351095209,1738331462165,-1196.83,0.00016986,2]
[351095210,1738331462174,-500.0,0.00016986,2]
[351095211,1738331462184,-829.0,0.00016986,2]
[351095212,1738331462194,-516.86,0.00016986,2]
[351095213,1738331462204,-1377.77,0.00016986,2]
[351095214,1738331462215,-500.0,0.00016986,2]
[351095215,1738331462224,-500.0,0.00016986,2]
[351095216,1738331462234,-1664.34,0.00016986,2]
[351095217,1738331462244,-500.0,0.00016986,2]
[351095218,1738331462254,-2818.25,0.00016986,2]
[351095219,1738331462263,-500.0,0.00016986,2]
[351095220,1738331462274,-782.42,0.00016986,2]
[351095221,1738331462284,-911.31,0.00016986,2]
[351095222,1738331462293,-599.89,0.00016986,2]
[351095223,1738331462302,-500.0,0.00016986,2]
[351095224,1738331462312,-918.57,0.00016986,2]
[351095225,1738331462321,-1313.52,0.00016986,2]
[351095226,1738331462330,-500.0,0.00016986,2]
[351095227,1738331462340,-1388.21,0.00016986,2]
[351095228,1738331462349,-2575.37,0.00016986,2]
[351095229,1738331462359,-500.0,0.00016986,2]
[351095230,1738331462369,-565.58,0.00016986,2]
[351095231,1738331462379,-500.0,0.00016986,2]
[351095232,1738331462388,-867.08,0.00016986,2]
[351095233,1738331462398,-527.5034494,0.00016986,2]
[351095234,1738331462408,-746.6,0.00016986,2]
[351095235,1738331462417,-500.0,0.00016986,2]
[351095236,1738331462427,-500.0,0.00016986,2]
[351095237,1738331462436,-628.99,0.00016986,2]
[351095238,1738331462446,-539.08,0.00016986,2]
[351095239,1738331462456,-500.0,0.00016986,2]
[351095240,1738331462467,-500.0,0.00016986,2]
[351095241,1738331462476,-632.37,0.00016986,2]
[351095242,1738331462486,-201.24648766,0.00016986,2]
[351095243,1738331462496,-621.17,0.00016986,2]
[351095244,1738331462505,-1249.8,0.00016986,2]
[351095245,1738331462514,-533.09,0.00016986,2]
[351095246,1738331462524,-1138.51,0.00016986,2]
[351095247,1738331462533,-500.0,0.00016986,2]
[351095248,1738331462543,-1669.07,0.00016986,2]
[351095249,1738331462554,-1201.96,0.00016986,2]
[351095250,1738331462564,-500.0,0.00016986,2]
[351095251,1738331462573,-573.56,0.00016986,2]
[351095252,1738331462583,-500.0,0.00016986,2]
[351095253,1738331462593,-500.0,0.00016986,2]
[351095254,1738331462603,-500.0,0.00016986,2]
[351095255,1738331462612,-500.0,0.00016986,2]
[351095256,1738331462621,-2175.56,0.00016986,2]
[351095257,1738331462631,-1109.12,0.00016986,2]
[351095258,1738331462641,-628.9,0.00016986,2]
[351095259,1738331462651,-817.41,0.00016986,2]
[351095260,1738331462661,-589.99,0.00016986,2]
[351095261,1738331462671,-1123.14,0.00016986,2]
[351095262,1738331462681,-730.15,0.00016986,2]
[351095263,1738331462691,-500.0,0.00016986,2]
[351095264,1738331462701,-500.0,0.00016986,2]
[351095265,1738331462710,-1589.69,0.00016986,2]
[351095266,1738331462768,-4466.76,0.00016986,2]
[351095267,1738331462778,-1096.5,0.00016986,2]
[351095268,1738331462788,-500.0,0.00016986,2]
[351095269,1738331462798,-500.0,0.00016986,2]
[351095270,1738331462807,-500.0,0.00016986,2]
[351095271,1738331462816,-500.0,0.00016986,2]
[351095272,1738331462825,-500.0,0.00016986,2]
[351095273,1738331462834,-811.64,0.00016986,2]
[351095274,1738331462843,-1038.63,0.00016986,2]
[351095275,1738331462852,-1714.39,0.00016986,2]
[351095276,1738331462861,-2383.87,0.00016986,2]
[351095277,1738331462870,-500.0,0.00016986,2]
[351095278,1738331462880,-500.0,0.00016986,2]
[351095279,1738331462889,-643.52,0.00016986,2]
[351095280,1738331462898,-653.94,0.00016986,2]
[351095281,1738331462908,-575.79,0.00016986,2]
[351095282,1738331462917,-1408.5,0.00016986,2]
[351095283,1738331462930,-579.23,0.00016986,2]
[351095284,1738331462939,-500.0,0.00016986,2]
[351095285,1738331462948,-500.0,0.00016986,2]
[351095286,1738331462956,-857.15,0.00016986,2]
[351095287,1738331462967,-1443.72,0.00016986,2]
[351095288,1738331462976,-500.0,0.00016986,2]
[351095289,1738331462985,-2347.18,0.00016986,2]
[351095290,1738331462994,-3749.58,0.00016986,2]
[351095291,1738331463003,-500.0,0.00016986,2]
[351095292,1738331463013,-500.0,0.00016986,2]
[351095293,1738331463022,-2537.4,0.00016986,2]
[351095294,1738331463031,-1881.99,0.00016986,2]
[351095295,1738331463041,-529.84,0.00016986,2]
[351095296,1738331463050,-500.0,0.00016986,2]
[351095297,1738331463059,-511.01,0.00016986,2]
[351095298,1738331463068,-520.15,0.00016986,2]
[351095299,1738331463077,-1192.43,0.00016986,2]
[351095300,1738331463087,-500.0,0.00016986,2]
[351095301,1738331463096,-686.71,0.00016986,2]
[351095302,1738331463106,-500.0,0.00016986,2]
[351095303,1738331463116,-500.0,0.00016986,2]
[351095304,1738331463125,-500.0,0.00016986,2]
[351095305,1738331463135,-760.48,0.00016986,2]
[351095306,1738331463145,-1242.43,0.00016986,2]
[351095307,1738331463155,-1563.35,0.00016986,2]
[351095308,1738331463165,-660.74,0.00016986,2]
[351095309,1738331463174,-1655.73,0.00016986,2]
[351095310,1738331463184,-1736.45,0.00016986,2]
[351095311,1738331463194,-500.0,0.00016986,2]
[351095312,1738331463204,-1241.45,0.00016986,2]
[351095313,1738331463214,-4452.16,0.00016986,2]
[351095314,1738331463223,-3401.87,0.00016986,2]
[351095315,1738331463233,-751.24,0.00016986,2]
[351095316,1738331463243,-500.0,0.00016986,2]
[351095317,1738331463252,-3290.56,0.00016986,2]
[351095318,1738331463262,-500.0,0.00016986,2]
[351095319,1738331463272,-1295.48,0.00016986,2]
[351095320,1738331463281,-1891.53,0.00016986,2]
[351095321,1738331463291,-500.0,0.00016986,2]
[351095322,1738331463300,-762.01,0.00016986,2]
[351095323,1738331463310,-3805.98,0.00016986,2]
[351095324,1738331463319,-965.0,0.00016986,2]
[351095325,1738331463328,-1482.09,0.00016986,2]
[351095326,1738331463337,-2173.05,0.00016986,2]
[351095327,1738331463347,-500.0,0.00016986,2]
[351095328,1738331463356,-500.0,0.00016986,2]
[351095329,1738331463365,-500.0,0.00016986,2]
[351095330,1738331463375,-403.07534671,0.00016986,2]
[351095331,1738331463384,-822.18,0.00016986,2]
[351095332,1738331463394,-2597.78,0.00016986,2]
[351095333,1738331463404,-3322.12,0.00016986,2]
[351095334,1738331463414,-672.46,0.00016986,2]
[351095335,1738331463424,-2117.77,0.00016986,2]
[351095336,1738331463434,-500.0,0.00016986,2]
[351095337,1738331463443,-801.38,0.00016986,2]
[351095338,1738331463452,-647.32,0.00016986,2]
[351095339,1738331463463,-1456.0,0.00016986,2]
[351095340,1738331463472,-1603.32,0.00016986,2]
[351095341,1738331463481,-1067.36,0.00016986,2]
[351095342,1738331463491,-1251.4,0.00016986,2]
[351095343,1738331463500,-680.04,0.00016986,2]
[351095344,1738331463509,-500.0,0.00016986,2]
[351095345,1738331463519,-500.0,0.00016986,2]
[351095346,1738331463528,-222.66647356,0.00016986,2]
[351095347,1738331463537,-2038.93,0.00016986,2]
[351095348,1738331463547,-925.79,0.00016986,2]
[351095349,1738331463556,-2395.79,0.00016986,2]
[351095350,1738331463568,-500.0,0.00016986,2]
[351095351,1738331463577,-500.0,0.00016986,2]
[351095352,1738331463586,-500.0,0.00016986,2]
[351095353,1738331463596,-500.0,0.00016986,2]
[351095354,1738331463606,-790.46,0.00016986,2]